Cogmind - Beta 12 @@@ ROGUE MODE // 2024.01.31 @ 20:25:29 // AFD2020/Player2 Player: Michael Result: Core destroyed Performance ------------- Evolutions (0) 0 Regions Visited (1) 200 Robots Destroyed (3) 15 Value Destroyed (30) 30 Prototype IDs (0) 0 Alien Tech Used (0) 0 Bonus (-27) -27 TOTAL SCORE: 218 Bonus ------- Friendly Fire -27 Cogmind --------- Core Integrity 0/250 Matter 296/300 Energy 250/250 System Corruption 0% Temperature Cool (0) Movement Walking (120) Location -10/Materials Parts ------- > --- POWER (1) -------- Ion Engine > --- PROPULSION (2) --- Aluminum Leg Aluminum Leg > --- UTILITY (2) ------ Small Storage Unit Power Shielding > --- WEAPON (2) ------- EM Pulse Gun Light Assault Rifle > --- INVENTORY (8) ---- Light Treads Light Treads Wheel Medium Matter Pod (100) Signal Interpreter Peak State ------------ > --- POWER ------------ Ion Engine > --- PROPULSION ------- Aluminum Leg Aluminum Leg > --- UTILITY ---------- Small Storage Unit Power Shielding > --- WEAPON ----------- EM Pulse Gun Light Assault Rifle > --- INVENTORY -------- Ion Engine Light Treads Light Treads Wheel [Rating: 7] Favorites ----------- Power Ion Engine Engine Ion Engine Propulsion Aluminum Leg Leg Aluminum Leg Utility Small Storage Unit Storage Small Storage Unit Protection Power Shielding Weapon EM Pulse Gun Energy Gun EM Pulse Gun Ballistic Gun Light Assault Rifle Build | -11 -10 ------- Run | Jun Mat Slots Evolved . | . . Power . | . . Propulsion . | . . Utility . | . . Weapon . | . . Parts Attached 8 | 6 2 Power 2 | 1 1 Engine 2 | 1 1 Core . | . . Reactor . | . . Propulsion 2 | 2 . Treads . | . . Leg 2 | 2 . Wheel . | . . Hover . | . . Flight . | . . Utility 2 | 1 1 Device . | . . Storage 1 | 1 . Processor . | . . Hackware . | . . Protection 1 | . 1 Artifact . | . . Weapon 2 | 2 . Energy Gun 1 | 1 . Energy Cannon . | . . Ballistic Gun 1 | 1 . Ballistic Cannon . | . . Launcher . | . . Special Weapon . | . . Impact Weapon . | . . Slashing Weapon . | . . Piercing Weapon . | . . Special Melee Weapon . | . . Unidentified Prototypes . | . . Parts Lost 1 | . 1 Power 1 | . 1 Propulsion . | . . Utility . | . . Weapon . | . . Highest Loss Streak 1 | . 1 To Critical Strikes . | . . Average Slot Usage (%) 99 | . 99 Engine 14 | . 14 Leg 28 | . 28 Storage 14 | . 14 Protection 13 | . 13 Energy Gun 14 | . 14 Ballistic Gun 14 | . 14 Naked Turns . | . . Heaviest Build 14 | 13 14 Greatest Support 20 | 20 20 Greatest Overweight (x) 1 | 1 . Average Overweight (x) . | . . Largest Inventory Capacity 8 | 8 8 Average Capacity 7 | 6 8 Most Carried 5 | 4 5 Average Carried 4 | 2 4 Final Capacity 8 | 8 8 Final Carried 5 | 4 5 Class Distribution -------------------- 100% | Mutant Dominant Class ---------------- Mutant | -10/Materials Resources | -11 -10 ----------- Run | Jun Mat Matter Collected 386 | 260 126 Remotely . | . . Salvage Created 51 | . 51 Parts 6 | . 6 Haulers Intercepted . | . . Recyclers Shooed . | . . Parts Field Recycled . | . . Retrieved Matter . | . . Parts Self-Destructed . | . . Prevented . | . . Kills | -11 -10 ------- Run | Jun Mat Combat Hostiles Destroyed 3 | . 3 Guns 3 | . 3 Classes Destroyed 1 | . 1 Swarmer 3 | . 3 Best Kill Streak 3 | . 3 Combat Bots Only 3 | . 3 Max Kills in Single Turn 1 | . 1 Gunslinging . | . . Exploded . | . . Melee . | . . Uniques/NPCs Destroyed . | . . Combat | -11 -10 -------- Run | Jun Mat Damage Taken 149 | . 149 Core . | . . Absorbed by Shields . | . . Redirected to Shielding 30 | . 30 Core Remaining (%) 100 | 100 . Volleys Fired 15 | . 15 Largest 1 | . 1 Hottest 20 | . 20 Shots Fired 15 | . 15 Gun 15 | . 15 Cannon . | . . Launcher . | . . Special . | . . Kinetic 15 | . 15 Thermal . | . . Explosive . | . . Electromagnetic . | . . Robot Hit Streak 4 | . 4 Robot Miss Streak 1 | . 1 Penetration Max . | . . Secondary Targets . | . . Shots Hit Robots 10 | . 10 Core Hits 7 | . 7 Critical Kills . | . . Critical Parts Destroyed . | . . Critical Strikes . | . . Melee Attacks . | . . Impact . | . . Slashing . | . . Piercing . | . . Sneak Attacks . | . . Combat Hostiles . | . . Follow-up Attacks . | . . Damage Inflicted 88 | . 88 Guns 88 | . 88 Cannons . | . . Explosions . | . . Melee . | . . Ramming . | . . Kinetic 88 | . 88 Thermal . | . . Explosive . | . . Electromagnetic . | . . Impact . | . . Slashing . | . . Piercing . | . . Highest Corruption . | . . Average Corruption . | . . Corruption Purged . | . . Corruption Blocked . | . . Overload Shots . | . . Overflow Damage . | . . Projectiles . | . . Explosions . | . . Melee . | . . Knockbacks . | . . Impact . | . . Kinetic . | . . Secondary . | . . Self-Inflicted Damage . | . . Shots . | . . Rammed . | . . Targets Rammed . | . . Kicked . | . . Crushed . | . . Highest Temperature . | . . Average Temperature . | . . Received Heat Transfer 15 | . 15 Siege Activations . | . . Robots Corrupted . | . . Combat Hostiles . | . . Parts Fried . | . . Impact Corruptions . | . . Robots Melted . | . . Combat Hostiles . | . . Parts Melted . | . . Heat Transferred . | . . Parts Sabotaged . | . . Parts Stolen . | . . Parts Stripped . | . . Power Chain Reactions . | . . Missiles Intercepted . | . . Alert | -11 -10 ------- Run | Jun Mat Peak Influence 87 | . 87 Initial . | . . Average 20 | . 28 Maximum Alert Level . | . . Low Security (%) 100 | 100 100 Level 1 . | . . Level 2 . | . . Level 3 . | . . Level 4 . | . . Level 5 . | . . High Security . | . . Max Security . | . . Squads Dispatched 1 | . 1 Investigation . | . . Extermination . | . . Reinforcement 1 | . 1 Assault . | . . Garrison . | . . Intercept . | . . Searches Triggered . | . . Construction Impeded . | . . Haulers Reinforced . | . . Active Scanning Responses . | . . Cargo Convoy Interrupts . | . . Stealth | -11 -10 --------- Run | Jun Mat Distress Signals 1 | . 1 Communications Jammed . | . . Distress Signals . | . . Times Spotted 8 | . 8 Peak Tracking Total 5 | . 5 Tactical Retreats . | . . Traps | -11 -10 ------- Run | Jun Mat Traps Triggered . | . . Indirectly . | . . Trap Hack Attempts . | . . Triggered . | . . Disarmed . | . . Reprogrammed . | . . Reused . | . . Traps Extracted . | . . Installed . | . . Triggered . | . . Machines | -11 -10 ---------- Run | Jun Mat Machines Disabled . | . . Max in Single Turn . | . . Machines Repaired . | . . Machines Sabotaged . | . . Overloaded Fab Kills . | . . Hacking | -11 -10 --------- Run | Jun Mat Machines Accessed 1 | . 1 Terminals 1 | . 1 Fabricators . | . . Repair Stations . | . . Recycling Units . | . . Scanalyzers . | . . Garrison Access . | . . Total Hacks 1 | . 1 Successful 1 | . 1 Failed . | . . Catastrophic . | . . Database Lockouts . | . . Manual . | . . Terminals 1 | . 1 Fabricators . | . . Repair Stations . | . . Recycling Units . | . . Scanalyzers . | . . Garrison Access . | . . Terminal Hacks 1 | . 1 Level Access Points 1 | . 1 Fabricator Hacks . | . . Repair Station Hacks . | . . Recycling Unit Hacks . | . . Scanalyzer . | . . Garrison Access Hacks . | . . Unauthorized Hacks . | . . Terminals . | . . Fabricators . | . . Repair Stations . | . . Recycling Units . | . . Scanalyzers . | . . Garrison Access . | . . Data Cores Recovered . | . . Used . | . . Hacking Detections . | . . Full Trace Events . | . . Feedback Events . | . . Feedback Blocked . | . . Robot Schematics Acquired . | . . Robots Built . | . . Authchips . | . . Time . | . . Total Robot Build Rating . | . . Part Schematics Acquired . | . . Parts Built . | . . Authchips . | . . Time . | . . Total Part Build Rating . | . . Parts Repaired . | . . Time . | . . Parts Recycled . | . . Recycled Matter . | . . Retrieved Matter . | . . Retrieved Components . | . . Parts Scanalyzed . | . . Part Schematics Acquired . | . . Parts Damaged . | . . Bothacking | -11 -10 ------------ Run | Jun Mat Used RIF Installer . | . . Robots Hacked . | . . Non-combat . | . . Combat . | . . Robot Hacks Applied . | . . Relay Couplers Released . | . . Fabnet Peak Effective % . | . . Robots Rewired . | . . Allies Hacked . | . . Hacks Repelled . | . . Allies | -11 -10 -------- Run | Jun Mat Total Allies 1 | . 1 Largest Group 1 | . 1 Highest-Rated Group 53 | . 53 Highest-Rated Ally 53 | . 53 Total Orders . | . . Ally Attacks 15 | . 15 Total Damage 63 | . 63 Kills . | . . Allies Corrupted . | . . Allies Melted . | . . Intel | -11 -10 ------- Run | Jun Mat Robot Analysis Total . | . . Derelict Logs Recovered . | . . Drone Launches . | . . Drone Recoveries . | . . Exploration | -11 -10 ------------- Run | Jun Mat Turns Passed 219 | 60 159 Spaces Moved 142 | 41 101 Core 6 | 6 . Treads . | . . Legs 136 | 35 101 Wheels . | . . Hover . | . . Flight . | . . Fastest Speed 50 | 50 120 Average Speed 118 | 115 120 Slowest Speed 120 | 120 120 Overloaded Moves . | . . Propulsion Burnouts . | . . Robots Hopped . | . . Cave-ins Triggered . | . . Exploration Rate (%) 12 | 4 20 Regions Visited 1 Branch Regions . Pre-discovered Areas . | . . Known Exits Taken . | . . Unknown Exits Taken 1 | 1 . Scrap Searched . | . . Spaces Dug . | . . Terrain Destroyed . | . . Melee . | . . Projectile . | . . AOE . | . . Terrain Rammed . | . . Walls Destroyed . | . . Machines Disabled . | . . Actions | -11 -10 --------- Run | Jun Mat Total 177 | 50 127 Wait 7 | . 7 Move 141 | 40 101 Hop . | . . Pick Up 6 | 4 2 Fast Attach 7 | 6 1 Attach 1 | . 1 Detach . | . . Swap . | . . Drop . | . . Fire 15 | . 15 Melee . | . . Ram . | . . Kick . | . . Crush . | . . Escape Stasis . | . . Rewire . | . . Trap . | . . Miscellaneous . | . . Route ------- -11/Junkyard -10/Materials (discovered 3 exits: Mat x3) History --------- Turn | Location | Event 2 | -11/Junkyard | Met Revision 17 6 | -11/Junkyard | Discovered new exit (range 15) 61 | -11/Junkyard | Entered Materials 186 | -10/Materials | Core integrity fell below 50% 187 | -10/Materials | Core integrity fell below 20% 206 | -10/Materials | Identified exit to Materials 220 | -10/Materials | Core destroyed Last Messages --------------- 00199_ Player 2 attaches Flight Unit. 00199_ O-16 Technician: "IFF HANDSHAKE FAILED. SECURING TERMINAL." 00200_ U-05 Engineer lays Concrete. 00200_ O-16 Technician uses terminal to summon reinforcements. 00200_ ALERT: Hostiles spotted, dispatching reinforcements to Terminal M001. 00200_ O-16 Technician locks terminal. 00201_ U-05 Engineer lays Concrete. 00206_ Connecting with Terminal... 00206_ Current location identified: Materials >>Access(Main) Found 3 level access points to Materials: (37,66) (19,67) (34,7) Map updated. 00211_ Acquired Signal Interpreter. 00213_ U-05 Engineer builds a Wall. 00214_ U-05 Engineer lays Concrete. 00216_ K-01 Serf collects debris. Map ----- +----------------------------------------------------+ | ?????????????????????????????????? | | ?????????????????????????????????? | | ?????????????????????????????????? | | ?????????????????????????????????? | | ?????????????????????????????????? | | ?????????????????????????????????? | | ?????????????????????????????????? | | ?????????????????????????????????? | | ?????????????????????????????????? | | ?????????????????????????????????? | | ?????????????????????????????????? | | ?????????????????????????????????? | | ?????????????????????????????????? | | ?????????????????????????????????? | | ?????????????????????????????????? | | ?????????????????? ????????????? | | ?????????????????# ???????????? | | ????????????????? ???????????? | | ??????????? ??? ???????????? | | ?????????? ???????????? | | ????????? ???????????? | | ????????? ???????????? | | ?????????? #???????????? | | ??????????? ########????? | | ????????????? "T" g/ "T" #????? | | ?????????????? # k @ #????? | | ???????????????? # """ #????? | | ?????????????????# # """ #????? | | ?????????????????# # """ #????? | | ????????????????## @/ #????? | | ???????????????### ########????? | | ??????????????## # " ###?????? | | ????????? """ #"""#+ """#?????? | | ????????? """ " "##????? | | ????????? """ " ""####?? | | ?????? " "" #?? | | ??????########" %" % #?? | | ?????????????#" % ""% #?? | | ?????????????## "# #?? | | ??????????????#""" """# #?? | | ??????????????#### % "# #?? | | ?????????????????# ## #?? | | ?????????????????# """ ## #?? | | ?????????????????#""""" ## #?? | | ?????????????????#""""" ## #?? | | ?????????#########""""" ## #?? | | ?????????# # """ ## #?? | | ?????????# # ## #?? | | ?????????# # ! ## #?? | | ?????????# """ #+#+####### #?? | +----------------------------------------------------+ Best States ------------- Heat Dissipation 25 Energy Generation 10 Energy Capacity 250 Matter Stores 300 Matter Capacity 300 Sight Range 16 Terrain Scan Density 10 Power Shielding 33 Evasion (%) 55 Item Schematics ----------------- None Robot Schematics ------------------ None Fabricated ------------ Nothing Alien Tech Used ----------------- None Achievements -------------- None Challenges ------------ None Player 2 | -11 -10 ---------- Run | Jun Mat Slots Evolved . | . . Power . | . . Propulsion . | . . Utility . | . . Weapon . | . . Parts Attached 5 | . 5 Parts Lost 1 | . 1 Damage Taken 372 | . 372 Core 255 | . 255 Player 2/Cogmind (%) 100 | . 100 Absorbed by Shields . | . . Damage Inflicted 63 | . 63 Player 2/Cogmind (%) 41 | . 41 Combat Hostiles Destroyed . | . . Player 2/Cogmind (%) . | . . Game ------ Seed QuantumRagnarokBoosters Manual? 0 Play Time 00:05:43 Cumulative 859.9 hours Start 2024.01.30 @ 21:34:36 End 2024.01.31 @ 20:25:29 Sessions 2 Manual Loads 0 Difficulty Rogue Special Mode AFD2020/Player2 Game No. 262 Rogue 226 Adventurer 36 Explorer 0 Win Type - Total 19 Types 19/0/0/0/0/0/0/0/0 Lore% 59 Gallery% 65 Achievement% 50 Wizard Run 0 Options --------- ASCII 0 Keyboard 1 Movement Vi Keybinds 0 Fullscreen 1 Font 18/Terminus Map View 76x50 Tactical HUD 1 Map Filters NONE Filters NONE Steam 0 RUN: 1df7a7ce-11ac-440e-8353-b8e8ffaffb53